fUSD/lending_fUSD_20251129
["ID","MTS","AMOUNT","RATE_DAILY","PERIOD"]
[395099686,1764425652199,-285.64950928,0.00014202,2]
[395099687,1764425654104,-389.95467715,0.00014202,2]
[395099688,1764425655393,-415.8019033,0.00014202,2]
[395099689,1764425657842,-301.05104951,0.00014202,2]
[395099690,1764425659438,-384.63443363,0.00014202,2]
[395099691,1764425660088,-10000.01,0.00014202,2]
[395099692,1764425660660,-10000.01,0.00014202,2]
[395099693,1764425660913,-4895.65960257,0.00014202,2]
[395099694,1764425660957,-208.69079486,0.00014202,2]
[395099695,1764425662409,-157.50449001,0.00014202,2]
[395099696,1764425667426,-633.80471513,0.00014202,2]
[395099697,1764425709155,200.0,0.00014202,2]
[395099698,1764425709463,200.0,0.00014344,2]
[395099699,1764425709762,200.0,0.00014487,2]
[395099700,1764425724482,-195.0,0.00014539,2]
[395099701,1764425724506,-87.91190165,0.0001459,2]
[395099702,1764425726935,-107.08809835,0.0001459,2]
[395099703,1764425726957,-200.0,0.00014632,2]
[395099704,1764425726980,-196.23190165,0.00014641,2]
[395099705,1764425732165,-300.0,0.00014641,2]
[395099706,1764425736260,-149.76593076,0.00014641,2]
[395099707,1764425736287,-18.32216759,0.00014641,2]
[395099708,1764425742533,-250.0,0.00014641,2]
[395099709,1764425746560,-157.51062533,0.00014641,2]
[395099712,1764425845164,-182.23056781,0.00014641,2]
[395099713,1764425845195,-500.0,0.00014641,2]
[395099714,1764425845225,-500.0,0.00014641,2]
[395099715,1764425859306,-250.0,0.0001471,2]
[395099717,1764426004705,200.0,0.00014541,2]
[395099719,1764426091681,1105.7381,0.00014679,2]
[395099721,1764426319307,8694.2719,9e-05,2]
[395099722,1764426319336,1814.75097593,9e-05,2]
[395099723,1764426326639,1022.05984194,0.000108,2]
[395099724,1764426353604,7163.19918213,0.000146,2]
[395099725,1764426353630,10000.01,0.000146,2]
[395099726,1764426353655,10000.01,0.000146,2]
[395099727,1764426353679,10000.01,0.000146,2]
[395099728,1764426353705,10000.01,0.000146,2]
[395099729,1764426353731,10000.01,0.000146,2]
[395099730,1764426353757,10000.01,0.000146,2]
[395099731,1764426353782,3886.74251605,0.000146,2]
[395099732,1764426361522,6113.26748395,8e-05,2]
[395099733,1764426361546,3892.19027828,8e-05,2]
[395099734,1764426365446,6107.81972172,0.00011,2]
[395099735,1764426365473,3263.06913159,0.00011,2]
[395099736,1764426400222,199.86,0.00012169,2]
[395099737,1764426431677,205.0,9.8e-05,2]
[395099738,1764426435323,5314.15578336,0.0001305,2]
[395099739,1764426435646,258.44025933,0.000101,2]
[395099740,1764426466524,759.48482572,0.00013,2]
[395099741,1764426466550,3641.47939931,0.00013,2]
[395099742,1764426485880,233.98,0.00019178,30]
[395099743,1764426486921,6358.53060069,0.0001439,2]
[395099744,1764426486948,3891.84406668,0.0001439,2]
[395099745,1764426510910,266.76191127,0.000107,2]
[395099746,1764426515754,9733.24808873,0.00014238,2]
[395099747,1764426515794,7833.17204097,0.00014238,2]
[395099748,1764426542582,5667.69,0.00014493,2]
[395099749,1764426546599,195.0,0.00014636,2]
[395099750,1764426559959,4137.32,0.00014238,2]
[395099751,1764426559984,10000.01,0.00014238,2]
[395099752,1764426560009,10000.01,0.00014238,2]
[395099753,1764426560032,10000.01,0.00014238,2]
[395099754,1764426560056,10000.01,0.00014238,2]
[395099755,1764426560080,10000.01,0.00014238,2]
[395099756,1764426560108,10000.01,0.00014238,2]
[395099757,1764426560134,10000.01,0.00014238,2]
[395099758,1764426581652,-7692.77332454,0.00014238,2]
[395099759,1764426581769,-10000.01,0.00014238,2]
[395099760,1764426581887,-10000.01,0.00014238,2]
[395099761,1764426582015,-10000.01,0.00014238,2]
[395099762,1764426582126,-10000.01,0.00014238,2]
[395099763,1764426582243,-10000.01,0.00014238,2]
[395099764,1764426582677,-10000.01,0.00014238,2]
[395099765,1764426584420,-1801.16940486,0.00014238,2]
[395099766,1764426584450,-1656.69225991,0.00014238,2]
[395099767,1764426584480,-151.0,0.00014238,2]
[395099768,1764426584510,-307.89911803,0.00014238,2]
[395099781,1764426631732,-178.51824483,0.00014779,2]
[395099782,1764426631742,-195.0,0.00014779,2]
[395099783,1764426631751,-200.0,0.00014779,2]
[395099784,1764426631760,-210.0,0.00014779,2]
[395099785,1764426631770,-195.0,0.00014782,2]
[395099786,1764426631779,-217.51,0.00014915,2]
[395099787,1764426631788,-976.99327414,0.00014944,2]
[395099788,1764426631806,-223.00672586,0.00014944,2]
[395099789,1764426631815,-7181.62,0.00014945,2]
[395099791,1764426631824,-300.0,0.00014998,2]
[395099793,1764426631833,-300.0,0.00014999,2]
[395099795,1764426631842,-300.0,0.00014999,2]
[395099797,1764426631851,-300.0,0.00014999,2]
[395099799,1764426631861,-27945.56125788,0.00015,4]
[395099801,1764426631870,-500.0,0.00015009,2]
[395099803,1764426631879,-500.0,0.00015058,2]
[395099805,1764426631889,-500.0,0.00015058,2]
[395099807,1764426631897,-1058.48361234,0.00015064,2]
[395099808,1764426631907,-166.66,0.00015158,2]
[395099811,1764426631916,-300.0,0.00015163,2]
[395099814,1764426631925,-1673.1847,0.00015165,2]
[395099818,1764426631934,-1500.0,0.0001517,2]
[395099822,1764426631944,-199.86,0.00015211,2]
[395099826,1764426631953,-1878.66498761,0.00015222,2]
[395099829,1764426631964,-1977.51501239,0.00015222,2]
[395099832,1764426631975,-527.74,0.00015255,3]
[395099835,1764426631985,-200.0,0.00015256,2]
[395099838,1764426631994,-200.0,0.00015256,2]
[395099841,1764426632004,-500.0,0.00015256,2]
[395099844,1764426632013,-200.0,0.00015256,2]
[395099847,1764426632023,-281.86349704,0.00015256,2]
[395099849,1764426632032,-151.0,0.00015256,2]
[395099851,1764426632041,-151.0,0.00015256,2]
[395099853,1764426632051,-151.0,0.00015256,2]
[395099855,1764426632059,-151.0,0.00015256,2]
[395099857,1764426632068,-151.0,0.00015256,2]
[395099859,1764426632078,-151.0,0.00015256,2]
[395099861,1764426632087,-151.0,0.00015256,2]
[395099863,1764426632096,-151.0,0.00015256,2]
[395099865,1764426632106,-151.0,0.00015256,2]
[395099867,1764426632115,-151.0,0.00015256,2]
[395099869,1764426632124,-151.0,0.00015256,2]
[395099871,1764426632133,-151.0,0.00015256,2]
[395099873,1764426632142,-151.0,0.00015256,2]
[395099875,1764426632151,-151.0,0.00015256,2]
[395099877,1764426632161,-151.0,0.00015256,2]
[395099879,1764426632170,-243.41850503,0.00015256,2]
[395099881,1764426632179,-500.0,0.00015264,2]
[395099882,1764426632188,-457.47572885,0.00015264,2]
[395099883,1764426632197,-347.00535365,0.00015264,2]
[395099884,1764426632206,-500.0,0.00015264,2]
[395099885,1764426632215,-500.0,0.00015264,2]
[395099886,1764426632224,-216.73139753,0.00015264,2]
[395099887,1764426633647,-171.76477533,0.00015264,2]
[395099888,1764426633657,-224.50204039,0.00015265,2]
[395099889,1764426633668,-1863.6456947,0.00015265,2]
[395099890,1764426633689,-2816.70427712,0.00015265,2]
[395099891,1764426633700,-1534.29798779,0.00015265,2]
[395099892,1764426633709,-704.12176423,0.00015265,2]
[395099893,1764426637689,-500.0,0.00015008,2]
[395099894,1764426637698,-153.66803778,0.00015008,2]
[395099895,1764426637707,-231.93534359,0.00015008,2]
[395099896,1764426637716,-500.0,0.00015008,2]
[395099897,1764426637726,-500.0,0.00015008,2]
[395099898,1764426637735,-500.0,0.00015008,2]
[395099899,1764426637744,-500.0,0.00015008,2]
[395099900,1764426637752,-427.56155446,0.00015008,2]
[395099901,1764426637761,-500.0,0.00015008,2]
[395099902,1764426637771,-500.0,0.00015008,2]
[395099903,1764426637780,-399.49510132,0.00015008,2]
[395099904,1764426637789,-500.0,0.00015008,2]
[395099905,1764426637798,-500.0,0.00015008,2]
[395099906,1764426637807,-500.0,0.00015008,2]
[395099907,1764426637816,-491.13865929,0.00015008,2]
[395099908,1764426637825,-522.56622783,0.00015008,2]
[395099909,1764426637835,-500.0,0.00015008,2]
[395099910,1764426637844,-500.0,0.00015008,2]
[395099911,1764426637854,-500.0,0.00015008,2]
[395099912,1764426637863,-500.0,0.00015008,2]
[395099913,1764426637871,-500.0,0.00015008,2]
[395099914,1764426637880,-500.0,0.00015008,2]
[395099915,1764426637889,-500.0,0.00015008,2]
[395099916,1764426637898,-568.89082924,0.00015008,2]
[395099917,1764426637907,-500.0,0.00015008,2]
[395099918,1764426637916,-500.0,0.00015008,2]
[395099919,1764426637925,-500.0,0.00015008,2]
[395099920,1764426637934,-500.0,0.00015008,2]
[395099921,1764426637943,-500.0,0.00015008,2]
[395099922,1764426637952,-500.0,0.00015008,2]
[395099923,1764426637961,-500.0,0.00015008,2]
[395099924,1764426637970,-500.0,0.00015008,2]
[395099925,1764426637979,-500.0,0.00015008,2]
[395099926,1764426637988,-500.0,0.00015008,2]
[395099927,1764426637997,-500.0,0.00015008,2]
[395099928,1764426638006,-3004.74424649,0.00015265,2]
[395099929,1764426638018,-6291.12398928,0.00015265,2]
[395099930,1764426638027,-9999.99,0.00015265,2]
[395099931,1764426638035,-1123.54,0.00015265,2]
[395099932,1764426638044,-9999.99,0.00015265,2]
[395099933,1764426638053,-2954.1,0.00015265,2]
[395099934,1764426638063,-19999.99,0.00015265,2]
[395099935,1764426638072,-1457.56,0.00015265,2]
[395099936,1764426638081,-3255.04,0.00015265,2]
[395099937,1764426638090,-29999.99,0.00015265,2]
[395099938,1764426638099,-150.99,0.00015265,2]
[395099939,1764426638109,-2530.78,0.00015265,2]
[395099940,1764426638118,-1190.92,0.00015265,2]
[395099941,1764426638128,-250.0,0.00015344,2]
[395099942,1764426638137,-1852.42,0.00015359,2]
[395099943,1764426638146,-2751.0,0.00015383,2]
[395099944,1764426638155,-166.66,0.00015478,2]
[395099945,1764426638164,-217.51,0.00015743,2]
[395099946,1764426638173,-166.66,0.00015797,2]
[395099947,1764426638182,-200.0,0.00015804,2]
[395099948,1764426638191,-200.0,0.00015804,2]
[395099949,1764426638200,-151.0,0.00015804,2]
[395099950,1764426638209,-19870.17,0.00015833,2]
[395099951,1764426638218,-5121.0771442,0.00015862,2]
[395099952,1764426638227,-195.0,0.00015942,2]
[395099953,1764426638236,-699.47971493,0.00015962,2]
[395099954,1764426638245,-500.0,0.00015973,2]
[395099955,1764426638254,-500.0,0.00015973,2]
[395099956,1764426638264,-232.94926616,0.00015973,2]
[395099957,1764426638273,-500.0,0.00015973,2]
[395099958,1764426638282,-105184.00299689,0.00016,4]
[395099959,1764426638291,-1000.0,0.00016014,2]
[395099960,1764426638300,-166.66,0.00016116,2]
[395099961,1764426638310,-195.0,0.00016257,2]
[395099962,1764426638319,-250.0,0.00016257,2]
[395099963,1764426638328,-195.0,0.00016257,2]
[395099964,1764426638337,-250.0,0.00016257,2]
[395099965,1764426638346,-150.0,0.00016285,2]
[395099966,1764426638355,-316.0,0.00016319,2]
[395099967,1764426638364,-316.0,0.00016335,2]
[395099968,1764426638373,-200.0,0.0001634,2]
[395099969,1764426638382,-151.0,0.00016352,2]
[395099970,1764426638392,-316.0,0.00016361,2]
[395099971,1764426638401,-420.0,0.00016416,2]
[395099972,1764426638410,-420.0,0.00016416,2]
[395099973,1764426638420,-166.66,0.00016435,2]
[395099974,1764426638429,-309.15,0.00016437,2]
[395099975,1764426638439,-1680.0,0.00016438,2]
[395099976,1764426638449,-8213.81,0.00016438,2]
[395099977,1764426638458,-800.0,0.00016438,2]
[395099978,1764426638468,-316.0,0.00016472,2]
[395099979,1764426638477,-1000.0,0.00016521,2]
[395099980,1764426638486,-617.86212032,0.00016521,2]
[395099981,1764426638496,-695.49212577,0.00016521,2]
[395099982,1764426638506,-427.45964135,0.00016568,2]
[395099983,1764426638515,-217.51,0.00016572,2]
[395099984,1764426638525,-316.0,0.00016614,2]
[395099985,1764426638535,-10247.80922679,0.00016677,2]
[395099986,1764426638544,-309.15,0.00016711,2]
[395099987,1764426638554,-166.66,0.00016754,2]
[395099988,1764426638563,-500.0,0.00016777,2]
[395099989,1764426638572,-500.0,0.00016777,2]
[395099990,1764426638582,-500.0,0.00016777,2]
[395099991,1764426638591,-500.0,0.00016777,2]
[395099992,1764426638600,-500.0,0.00016777,2]
[395099993,1764426638609,-500.0,0.00016777,2]
[395099994,1764426638620,-553.64373807,0.00016777,2]
[395099995,1764426638630,-500.0,0.00016777,2]
[395099996,1764426638639,-500.0,0.00016777,2]
[395099997,1764426638649,-334.5472959,0.00016777,2]
[395099998,1764426638658,-500.0,0.00016777,2]
[395099999,1764426638667,-500.0,0.00016777,2]
[395100000,1764426638676,-578.20924308,0.00016777,2]
[395100001,1764426638685,-500.0,0.00016777,2]
[395100002,1764426638694,-500.0,0.00016777,2]
[395100003,1764426638703,-500.0,0.00016777,2]
[395100004,1764426638713,-500.0,0.00016777,2]
[395100005,1764426638723,-500.0,0.00016777,2]
[395100006,1764426638732,-500.0,0.00016777,2]
[395100007,1764426638741,-300.0,0.00016777,2]
[395100008,1764426638751,-500.0,0.00016777,2]
[395100009,1764426638760,-250.0,0.00016777,2]
[395100010,1764426638769,-500.0,0.00016777,2]
[395100011,1764426638778,-250.0,0.00016777,2]
[395100012,1764426638787,-500.0,0.00016777,2]
[395100013,1764426638796,-250.0,0.00016777,2]
[395100014,1764426638805,-500.0,0.00016777,2]
[395100015,1764426638814,-250.0,0.00016777,2]
[395100016,1764426638823,-500.0,0.00016777,2]
[395100017,1764426638832,-250.0,0.00016777,2]
[395100018,1764426638841,-1000.0,0.00016777,2]
[395100019,1764426638850,-500.0,0.00016777,2]
[395100020,1764426638860,-250.0,0.00016777,2]
[395100021,1764426638869,-500.0,0.00016777,2]
[395100022,1764426638879,-250.0,0.00016777,2]
[395100023,1764426638887,-500.0,0.00016777,2]
[395100024,1764426638896,-500.0,0.00016777,2]
[395100025,1764426638905,-250.0,0.00016777,2]
[395100026,1764426638914,-500.0,0.00016777,2]
[395100027,1764426638923,-250.0,0.00016777,2]
[395100028,1764426638933,-500.0,0.00016777,2]
[395100029,1764426638942,-250.0,0.00016777,2]
[395100030,1764426638951,-500.0,0.00016777,2]
[395100031,1764426638960,-250.0,0.00016777,2]
[395100032,1764426638969,-500.0,0.00016777,2]
[395100033,1764426638979,-250.0,0.00016777,2]
[395100034,1764426638988,-500.0,0.00016777,2]
[395100035,1764426638997,-500.0,0.00016777,2]
[395100036,1764426639006,-500.0,0.00016777,2]
[395100037,1764426639015,-500.0,0.00016777,2]
[395100038,1764426639025,-500.0,0.00016777,2]
[395100039,1764426639034,-500.0,0.00016777,2]
[395100040,1764426639044,-500.0,0.00016777,2]
[395100041,1764426639053,-500.0,0.00016777,2]
[395100042,1764426639062,-500.0,0.00016777,2]
[395100043,1764426639071,-500.0,0.00016777,2]
[395100044,1764426639080,-500.0,0.00016777,2]
[395100045,1764426639089,-500.0,0.00016777,2]
[395100046,1764426639098,-500.0,0.00016777,2]
[395100047,1764426639107,-500.0,0.00016777,2]
[395100048,1764426639116,-500.0,0.00016777,2]
[395100049,1764426639125,-500.0,0.00016777,2]
[395100050,1764426639135,-500.0,0.00016777,2]
[395100051,1764426639145,-500.0,0.00016777,2]
[395100052,1764426639154,-151.0,0.00016777,2]
[395100053,1764426639163,-500.0,0.00016777,2]
[395100054,1764426639172,-267.46074303,0.00016777,2]
[395100055,1764426639182,-500.0,0.0001684,2]
[395100056,1764426639194,-316.0,0.00016874,2]
[395100057,1764426639203,-151.0,0.000169,2]
[395100058,1764426639212,-316.0,0.00016903,2]
[395100059,1764426639220,-743.19219231,0.00016913,2]
[395100060,1764426639231,-316.0,0.00016958,2]
[395100061,1764426639241,-500.0,0.00016973,2]
[395100062,1764426639251,-557.4345573,0.00016973,2]
[395100063,1764426639261,-157.55322003,0.00016973,2]
[395100064,1764426639270,-500.0,0.00016973,2]
[395100065,1764426639279,-500.0,0.00016973,2]
[395100066,1764426639288,-500.0,0.00016973,2]
[395100067,1764426639297,-500.0,0.00016973,2]
[395100068,1764426639306,-501.70301498,0.00016973,2]
[395100069,1764426639315,-316.0,0.00016978,2]
[395100070,1764426639326,-316.0,0.00016983,2]
[395100071,1764426639336,-309.17,0.00016985,2]
[395100072,1764426639345,-253.45221308,0.0001699,2]
[395100074,1764426639674,-262.00651506,0.00016996,7]
[395100075,1764426639684,-151.0,0.00016997,2]
[395100076,1764426639693,-151.0,0.00016997,2]
[395100077,1764426639703,-151.0,0.00016997,2]
[395100078,1764426639713,-500.0,0.00016999,2]
[395100079,1764426639723,-500.0,0.00016999,2]
[395100080,1764426639733,-500.0,0.00016999,2]
[395100081,1764426639742,-529685.02200039,0.00017,2]
[395100082,1764426639755,-1923.56255802,0.00017,2]
[395100083,1764426639765,-600.0,0.00017,2]
[395100084,1764426639791,-393.69097478,0.00017,2]
[395100085,1764426639952,-500.0,0.00015973,2]
[395100086,1764426639963,-1000.0,0.00016521,2]
[395100087,1764426639972,-128750.62008892,0.00017,2]
[395100089,1764426639983,-5860.0317327,0.00017,2]
[395100093,1764426640012,-90287.17181614,0.00017,2]
[395100095,1764426640023,-1555.42649842,0.00017,2]
[395100096,1764426640034,-1286.75478,0.00017,2]
[395100098,1764426640045,-1548.95954837,0.00017,2]
[395100100,1764426640056,-1098.2059485,0.00017,2]
[395100103,1764426640079,-999.0,0.00017,2]
[395100105,1764426640802,-1.7e-07,0.00017,2]
[395100112,1764426644976,-235.2676,0.00015165,2]
[395100113,1764426644986,-72.4124,0.0001666,2]
[395100121,1764426661504,500.0,0.00014679,2]
[395100138,1764427582851,1000.0,0.00013699,2]
[395100141,1764427627254,150.0,0.00014435,2]
[395100142,1764427774789,504.62,0.00025,120]
[395100150,1764427831891,-210.0,0.00014755,2]
[395100151,1764427831902,-1391.14,0.00014755,2]
[395100152,1764427831914,-4532.97,0.00014755,2]
[395100153,1764427831924,-195.0,0.0001479,2]
[395100154,1764427831933,-250.0,0.00014825,2]
[395100155,1764427831943,-195.0,0.00014894,2]
[395100156,1764427831952,-200.0,0.00014895,2]
[395100157,1764427831962,-1200.0,0.00014962,2]
[395100158,1764427831971,-300.0,0.00014962,2]
[395100159,1764427831980,-24029.41471511,0.00014963,2]
[395100160,1764427831989,-17253.21632031,0.00014995,2]
[395100161,1764427831999,-305.65481374,0.00015,2]
[395100162,1764427832008,-151.0,0.00015033,2]
[395100163,1764427832017,-151.0,0.00015033,2]
[395100164,1764427832027,-18424.94405714,0.00015036,2]
[395100165,1764427832037,-14406.0066679,0.00015036,2]
[395100175,1764427835865,158.1,7.625e-05,2]
[395100176,1764427836070,158.1,8.169e-05,2]
[395100177,1764427836276,158.1,8.714e-05,2]
[395100178,1764427836479,158.1,9.258e-05,2]
[395100179,1764427836668,158.1,9.803e-05,2]
[395100180,1764427836880,158.1,0.00010348,2]
[395100181,1764427837076,158.1,0.00010892,2]
[395100182,1764427837279,158.1,0.00011437,2]
[395100183,1764427837491,158.1,0.00011981,2]
[395100184,1764427837713,158.1,0.00012526,2]
[395100185,1764427837932,158.1,0.00013071,2]
[395100186,1764427837953,-320.23301019,0.00015035,2]
[395100187,1764427837962,-500.0,0.00015035,2]
[395100188,1764427837972,-14664.20802317,0.00015036,2]
[395100189,1764427837983,-712504.84125179,0.00015036,2]
[395100190,1764427837993,-429.64260555,0.00015064,2]
[395100191,1764427838003,-169.17402532,0.00015064,2]
[395100192,1764427838012,-500.0,0.00015064,2]
[395100193,1764427838022,-500.0,0.00015064,2]
[395100194,1764427838032,-229.87675881,0.00015064,2]
[395100195,1764427838041,-1000.0,0.00015065,2]
[395100196,1764427838051,-280.8168,0.00015065,2]
[395100197,1764427838061,-316.105,0.00015065,2]
[395100198,1764427838071,-3230.5107,0.00015065,2]
[395100199,1764427838081,-235.2676,0.00015065,2]
[395100200,1764427838091,-1544.5344,0.00015065,2]
[395100201,1764427838101,-1746.732,0.00015065,2]
[395100202,1764427838110,-170.133,0.00015065,2]
[395100203,1764427838120,-931.7668403,0.00015065,2]
[395100204,1764427838130,-151.0,0.00015086,2]
[395100205,1764427838139,-999.0,0.00015095,3]
[395100206,1764427838149,-1190.92,0.00015095,2]
[395100207,1764427838158,-150.99,0.00015095,2]
[395100208,1764427838167,-6291.13,0.00015095,2]
[395100209,1764427838177,-29999.99,0.00015095,2]
[395100210,1764427838186,-3255.04,0.00015095,2]
[395100211,1764427838196,-9999.99,0.00015095,2]
[395100212,1764427838205,-2954.1,0.00015095,2]
[395100213,1764427838216,-2530.78,0.00015095,2]
[395100214,1764427838225,-1123.54,0.00015095,2]
[395100233,1764427838750,-9999.99,0.00015095,2]
[395100234,1764427838773,-47480.2,0.00015095,2]
[395100235,1764427838783,-19999.99,0.00015095,2]
[395100236,1764427838792,-8958.88706704,0.00015095,2]
[395100237,1764427838825,-447.66174487,0.00015095,2]
[395100238,1764427838894,158.1,0.00013615,2]
[395100240,1764427838941,158.1,0.0001416,2]
[395100245,1764427839017,158.1,0.00014704,2]
[395100249,1764427843895,-309.93234567,0.00015035,2]
[395100250,1764427843906,-500.0,0.00015035,2]
[395100251,1764427843915,-368.60415218,0.00015035,2]
[395100252,1764427843925,-593.44118809,0.00015095,2]
[395100253,1764427843935,-1457.56,0.00015095,2]
[395100254,1764427843945,-699.47971493,0.00015095,2]
[395100255,1764427843956,-633.48259913,0.00015136,2]
[395100256,1764427843969,-4903.630008,0.00015136,2]
[395100257,1764427843981,-220.00739287,0.00015136,2]
[395100258,1764427843991,-151.0,0.00015153,2]
[395100259,1764427844000,-200.0,0.00015156,2]
[395100260,1764427844011,-206.03832228,0.00015156,2]
[395100261,1764427844020,-500.0,0.00015156,2]
[395100262,1764427844030,-151.0,0.00015156,2]
[395100263,1764427844040,-151.0,0.00015156,2]
[395100264,1764427844049,-151.0,0.00015156,2]
[395100265,1764427844059,-151.0,0.00015156,2]
[395100266,1764427844068,-151.0,0.00015156,2]
[395100267,1764427844078,-200.0,0.00015156,2]
[395100268,1764427844087,-151.0,0.00015156,2]
[395100269,1764427844098,-151.0,0.00015156,2]
[395100270,1764427844107,-151.0,0.00015156,2]
[395100271,1764427844116,-151.0,0.00015156,2]
[395100272,1764427844125,-151.0,0.00015156,2]
[395100273,1764427844135,-151.0,0.00015156,2]
[395100274,1764427844144,-151.0,0.00015156,2]
[395100276,1764427844154,-151.0,0.00015156,2]
[395100278,1764427844163,-151.0,0.00015156,2]
[395100280,1764427844172,-151.0,0.00015156,2]
[395100281,1764427844182,-151.0,0.00015156,2]
[395100282,1764427844191,-151.0,0.00015156,2]
[395100283,1764427844200,-151.0,0.00015156,2]
[395100284,1764427844209,-218.969743,0.00015156,2]
[395100285,1764427844218,-151.0,0.00015156,2]
[395100287,1764427844227,-151.0,0.00015156,2]
[395100289,1764427844237,-277.33982032,0.00015156,2]
[395100291,1764427844246,-500.0,0.00015164,2]
[395100292,1764427844255,-500.0,0.00015164,2]
[395100293,1764427844264,-500.0,0.00015164,2]
[395100294,1764427844273,-500.0,0.00015164,2]
[395100295,1764427844282,-500.0,0.00015164,2]
[395100296,1764427844292,-500.0,0.00015164,2]
[395100297,1764427844301,-1560.75812051,0.00015218,2]
[395100298,1764427844326,-439.24187949,0.00015218,2]
[395100299,1764427844335,-158.1,0.00015249,2]
[395100300,1764427844344,-12095.91294858,0.00015339,2]
[395100301,1764427844353,-282.0,0.00015384,2]
[395100302,1764427844363,-6315.37,0.000155,2]
[395100303,1764427844372,-3177.79,0.00015569,2]
[395100304,1764427844382,-29429.07,0.00015605,2]
[395100305,1764427844391,-151.0,0.00015634,2]
[395100306,1764427844400,-200.0,0.00015704,2]
[395100307,1764427844409,-1602.24,0.00015736,2]
[395100308,1764427844419,-500.0,0.00015973,2]
[395100309,1764427844427,-500.0,0.00015973,2]
[395100310,1764427844436,-610.74491434,0.00015973,2]
[395100311,1764427844446,-500.0,0.00015973,2]
[395100313,1764427844455,-232.94926616,0.00015973,2]
[395100314,1764427844465,-1395.85381452,0.00016152,2]
[395100315,1764427844474,-151.0,0.00016182,2]
[395100316,1764427844483,-300.0,0.00016231,2]
[395100317,1764427844493,-250.0,0.00016231,2]
[395100318,1764427844502,-195.0,0.00016231,2]
[395100319,1764427844511,-225.56507546,0.00016231,2]
[395100320,1764427844520,-195.0,0.00016231,2]
[395100321,1764427844531,-250.0,0.00016231,2]
[395100322,1764427844540,-200.0,0.00016252,2]
[395100323,1764427844550,-420.0,0.00016376,2]
[395100324,1764427844558,-1516.0,0.00016386,2]
[395100325,1764427844568,-500.0,0.00016438,2]
[395100327,1764427844577,-500.0,0.00016438,2]
[395100329,1764427844587,-500.0,0.00016438,2]
[395100331,1764427844595,-546.51,0.00016438,2]
[395100332,1764427844604,-800.0,0.00016438,2]
[395100333,1764427844613,-1516.0,0.00016447,2]
[395100334,1764427844622,-1680.0,0.00016458,2]
[395100335,1764427844631,-617.86212032,0.00016521,2]
[395100336,1764427844641,-695.49212577,0.00016521,2]
[395100337,1764427844650,-1000.0,0.00016521,2]
[395100338,1764427844659,-427.45964135,0.00016601,2]
[395100339,1764427844669,-24029.41471509,0.00016637,2]
[395100340,1764427844679,-1516.0,0.00016641,2]
[395100341,1764427844689,-17253.21632027,0.00016651,2]
[395100342,1764427844699,-947.53319934,0.0001666,2]
[395100343,1764427844709,-1077.84816147,0.0001666,2]
[395100344,1764427844723,-1067.60085375,0.0001666,2]
[395100345,1764427844734,-1103.66747568,0.0001666,2]
[395100346,1764427844743,-1073.86346327,0.0001666,2]
[395100347,1764427844753,-1135.97944456,0.0001666,2]
[395100348,1764427844763,-1017.33729542,0.0001666,2]
[395100349,1764427844772,-1115.39360148,0.0001666,2]